[Event "13th KIIT Festival-A 2022"]
[Site "Bhubaneswar"]
[Date "2022.05.28"]
[Round "9.10"]
[White "Laxman, R.R."]
[Black "Santu, Mondal"]
[Result "1-0"]
[ECO "D02"]
[WhiteElo "2420"]
[BlackElo "2097"]
[Annotator "TA"]
[PlyCount "86"]
[EventDate "2022.05.15"]
[EventType "swiss"]
[EventCountry "IND"]
[SourceTitle "playchess.com"]
[Source "ChessBase"]
[SourceQuality "1"]
[TimeControl "5400+30"]

{[%evp 9,86,4,6,0,18,0,9,-11,0,0,6,-22,-8,0,0,-16,0,-1,0,0,0,0,0,0,9,6,4,-1,-6,-19,33,0,0,0,0,0,0,0,0,0,27,10,37,-13,0,0,11,0,0,0,14,17,20,14,145,146,146,143,133,0,82,86,62,53,251,237,238,205,211,185,618,586,677,666,1026,1002,1407,1369,1162]} 1. d4 {[%emt 1:31:00]} d5 {[%emt 0:01:03]} 2. Nf3 {[%emt 0:00:00]} c6 {[%emt 0:00:24]} 3. Bf4 {[%emt 0:00:00]} Nf6 {[%emt 0:02:15]} 4. c3 {[%emt 0:00:00]} Qb6 {[%emt 0:04:11]} 5. Qb3 {[%emt 0:00:00]} Bf5 {[%emt 0:00:39]} 6. Nbd2 {[%emt 0:00:00] D02: 1 d4 d5 2 Nf3 sidelines, including 2...Nf6 3 g3 and 2...Nf6 3 Bf4.} h6 {[%emt 0:01:50]} 7. e3 {[%emt 0:00:00]} Nbd7 {[%emt 0:03:14]} 8. Be2 {[%emt 0:00:00] The position is equal.} e6 {[%emt 0:03:28]} 9. O-O {[%emt 0:00:00]} Be7 {[%emt 0:02:13]} 10. Ne5 {[%emt 0:00:00]} Nxe5 {[%emt 0:01:13]} 11. Bxe5 {[%emt 0:00:00]} O-O {[%emt 0:00:45]} 12. f3 {[%emt 0:00:00] [#]} Bg6 $146 {[%emt 0:05:27]} ({Predecessor:} 12... c5 13. Qxb6 axb6 14. a3 Rac8 15. Kh1 Bg6 16. g4 Nd7 17. Bg3 f6 18. f4 f5 {½-½ (46) Zinani,A (2145)-Schumacher,H (2185) Arco 1998}) 13. a4 {[%emt 0:00:00]} Nd7 {[%emt 0:03:01]} 14. Bg3 {[%emt 0:00:00]} Rfe8 {[%emt 0:10:14][%cal Oe6e5]} 15. a5 {[%emt 0:00:00]} Qxb3 {[%emt 0:00:09]} 16. Nxb3 {[%emt 0:00:00][%cal Bd2b3,Bb3c1,Bc1d3,Bd3f4,Bf4h5][%mdl 32]} a6 {[%emt 0:02:18]} 17. Nc1 {[%emt 0:00:00]} c5 {[%emt 0:02:56]} 18. Nd3 {[%emt 0:00:00]} Rac8 {[%emt 0:05:43]} 19. Rfc1 {[%emt 0:00:00]} Bf6 {[%emt 0:04:56]} (19... c4 $11 20. Nf4 Bh7) 20. Nf4 {[%emt 0:00:00]} (20. b4 $5 {[%cal Rb4c5]}) 20... Bf5 {[%emt 0:00:51]} 21. b4 {[%emt 0:00:00]} c4 {[%emt 0:02:34]} 22. Bd1 {[%emt 0:00:00][%cal Be2d1,Bd1a4,Ba4b5][%mdl 32]} g5 {[%emt 0:01:21]} 23. Nh5 {[%emt 0:00:00] Black must now prevent Ba4.} Be7 $1 {[%emt 0:01:30]} 24. Bf2 {[%emt 0:00:00]} Nb8 {[%emt 0:01:52]} 25. Ba4 {[%emt 0:00:00]} Nc6 {[%emt 0:01:35]} 26. b5 {[%emt 0:00:00]} (26. Re1 $14) 26... axb5 {[%emt 0:00:53]} 27. Bxb5 {[%emt 0:00:00] Hoping for g4.} Bg6 {[%emt 0:05:40]} 28. g4 {[%emt 0:00:00] Strongly threatening a6.} Red8 {[%emt 0:09:02]} 29. a6 {[%emt 0:00:00]} bxa6 {[%emt 0:00:49]} 30. Rxa6 {[%emt 0:00:00]} Nb8 {[%emt 0:00:51]} 31. Ra7 {[%emt 0:00:00]} Kf8 {[%emt 0:00:14]} (31... Bd6 $11) 32. Rca1 $16 {[%emt 0:00:00] White is more active.} Bd6 {[%emt 0:08:56] [#]} 33. Rb7 $1 {[%emt 0:00:00]} Nc6 {[%emt 0:02:44] [#]} 34. Ra6 {[%emt 0:00:00]} (34. Nf6 $1 $16 {[%cal Rf6d7]}) 34... Bxh5 {[%emt 0:05:38]} (34... Nb4 $1 $11 {remains equal.} 35. cxb4 c3) 35. gxh5 {[%emt 0:00:00]} Ne7 {[%emt 0:00:16]} 36. h4 $36 {[%emt 0:00:00][%mdl 2048] White fights for an advantage.} Ra8 $2 {[%emt 0:01:06] Loses the game.} ({Black should try} 36... Bb8 $14) 37. Rd7 $18 {[%emt 0:00:00]} Rab8 {[%emt 0:02:24]} 38. Raxd6 {[%emt 0:00:00]} Rxd7 {[%emt 0:00:35]} 39. Bxd7 {[%emt 0:00:00]} Rd8 $2 {[%emt 0:00:37]} (39... Rb1+ 40. Kg2 gxh4) 40. e4 {[%emt 0:00:00] White is clearly winning.} dxe4 {[%emt 0:02:28]} 41. fxe4 {[%emt 0:00:00]} f6 {[%emt 0:01:51]} 42. Bg3 {[%emt 0:00:00]} gxh4 {[%emt 0:00:49] [#]} 43. Bxe6 $1 {[%emt 0:00:00]} Ra8 {[%emt 0:01:25] Weighted Error Value: White=0.11 (very precise) /Black=0.45} (43... Re8 44. Bxh4) 1-0

[Event "13th KIIT Festival-A 2022"]
[Site "Bhubaneswar"]
[Date "2022.05.28"]
[Round "9.11"]
[White "Rakesh, Kumar Nayak"]
[Black "Gusain, Himal"]
[Result "0-1"]
[ECO "A20"]
[WhiteElo "2053"]
[BlackElo "2396"]
[Annotator "TA"]
[PlyCount "86"]
[EventDate "2022.05.15"]
[EventType "swiss"]
[EventCountry "IND"]
[SourceTitle "playchess.com"]
[Source "ChessBase"]
[SourceQuality "1"]
[TimeControl "5400+30"]

{[%evp 9,86,10,43,41,47,29,36,51,52,35,61,22,86,-56,-54,-57,-56,-62,-56,-58,-54,-55,-50,-46,-57,-58,-54,-77,-73,-96,-96,-103,-71,-91,-91,-96,-91,-96,-81,-62,-91,-135,-144,-146,0,-269,-244,-272,-262,-298,-298,-378,-377,-366,-362,-423,-404,-382,-395,-417,-387,-412,-443,-602,-580,-923,-890,-927,-916,-1030,-1023,-987,-844,-1086,-1019,-929,-644,-905,-561]} 1. c4 {[%emt 0:00:46]} e5 {[%emt 0:04:29]} 2. g3 {[%emt 0:00:36]} c6 {[%emt 0:00:20]} 3. d4 {[%emt 0:00:09][%cal Bd2d4,Bd4d5][%mdl 32]} e4 {[%emt 0:00:09]} 4. d5 {[%emt 0:00:05]} Bb4+ {[%emt 0:00:08]} 5. Bd2 {[%emt 0:00:05]} Bxd2+ {[%emt 0:00:16]} 6. Qxd2 {[%emt 0:00:02] A20: English Opening: 1...e5.} Nf6 {[%emt 0:00:19]} 7. Bg2 {[%emt 0:00:41]} O-O {[%emt 0:00:09]} 8. Nc3 {[%emt 0:01:13] White is slightly better.} Re8 {[%emt 0:00:30]} 9. Nh3 {[%emt 0:03:58]} d6 {[%emt 0:01:04]} 10. O-O {[%emt 0:02:21] [#]} Bf5 $146 {[%emt 0:02:34] [#]} (10... cxd5 $11 {remains equal.} 11. Nxd5 Nxd5 12. Qxd5 Re5) ({Predecessor:} 10... c5 11. Ng5 Bf5 12. Qf4 Bg6 13. Ngxe4 Nxe4 14. Bxe4 a6 15. Bxg6 hxg6 16. a4 Re5 {1-0 (49) Bocharov,D (2516)-Pranav,V (2481) Chess.com INT 2022}) 11. e3 {[%emt 0:05:58]} ({White should try} 11. dxc6 $1 $16 Nxc6 12. Nf4) 11... c5 $1 $15 {[%emt 0:03:38]} 12. f3 {[%emt 0:12:09]} exf3 {[%emt 0:02:39]} 13. Rxf3 {[%emt 0:00:30]} Ne4 {[%emt 0:08:50]} 14. Nxe4 {[%emt 0:00:45]} Bxe4 {[%emt 0:00:05]} 15. Rf4 {[%emt 0:00:03]} Bg6 {[%emt 0:00:09]} 16. Nf2 {[%emt 0:03:34]} Nd7 {[%emt 0:00:15]} (16... a6 {looks sharper.} 17. Ne4 b5 18. Raf1 Bxe4 19. Bxe4 Nd7) 17. e4 {[%emt 0:14:36]} a6 {[%emt 0:01:05]} 18. h4 {[%emt 0:16:31]} h6 {[%emt 0:02:41]} 19. Rf1 {[%emt 0:04:31]} b5 {[%emt 0:01:29]} 20. Ng4 {[%emt 0:08:05]} Ne5 {[%emt 0:01:06]} 21. h5 {[%emt 0:03:16]} Bxh5 {[%emt 0:00:17]} (21... Nxc4 $6 22. Qe2 Bh7 23. Rxf7 $11) 22. Nf6+ {[%emt 0:00:10]} gxf6 {[%emt 0:00:46]} 23. Rh4 {[%emt 0:00:01] [#]} Kg7 $1 {[%emt 0:02:02]} 24. Rxh5 {[%emt 0:00:45]} Rh8 {[%emt 0:00:04]} 25. Bh3 {[%emt 0:02:10]} bxc4 {[%emt 0:01:01]} 26. Rhf5 {[%emt 0:17:22]} h5 {[%emt 0:03:04]} (26... Rb8 $17 {...Qe7 is the strong threat.} 27. R1f2 Qe7) 27. R1f2 $2 {[%emt 0:02:16][%mdl 8192]} (27. Rxf6 $11 Qxf6 28. Rxf6 Kxf6 29. Qf4+ Kg7 30. Qg5+ Ng6 31. e5 dxe5 32. Bf5) 27... Rh6 $19 {[%emt 0:00:20][%cal Bh8h6,Bh6g6,Bg6g5,Bg5g4,Bg4h4][%mdl 32]} 28. Rh2 {[%emt 0:00:50]} Qe7 {[%emt 0:00:18]} 29. Qf4 {[%emt 0:00:56]} Rah8 {[%emt 0:00:38]} 30. Bf1 {[%emt 0:00:15]} h4 {[%emt 0:00:44]} 31. g4 {[%emt 0:00:30]} Rg6 {[%emt 0:00:41]} 32. Bh3 {[%emt 0:00:37]} Re8 {[%emt 0:02:50]} 33. Re2 {[%emt 0:00:24]} Rg5 {[%emt 0:01:40]} 34. Kh1 {[%emt 0:00:30]} a5 {[%emt 0:00:15][%cal Ba6a5,Ba5a4][%mdl 32]} 35. Qf2 {[%emt 0:00:32]} a4 {[%emt 0:00:30]} ({Not} 35... Rh8 $2 36. Qe3 $19) 36. a3 {[%emt 0:00:02] Black is clearly winning.} Rb8 {[%emt 0:00:23] And now ...Rb3 would win.} 37. Qxh4 {[%emt 0:00:16]} Rh8 {[%emt 0:00:36]} 38. Qg3 {[%emt 0:00:43]} Rxg4 {[%emt 0:00:12]} 39. Qe3 {[%emt 0:01:01]} Rgh4 {[%emt 0:00:50]} 40. Rh2 {[%emt 0:00:27]} Ng6 {[%emt 0:00:16]} 41. e5 {[%emt 0:00:24]} fxe5 {[%emt 0:00:25]} 42. Qg3 {[%emt 0:00:18]} R8h5 {[%emt 0:00:26]} 43. Rff2 {[%emt 0:00:35]} Qg5 {[%emt 0:00:53] Weighted Error Value: White=0.60/Black=0.22 (precise)} 0-1

[Event "13th KIIT Festival-A 2022"]
[Site "Bhubaneswar"]
[Date "2022.05.28"]
[Round "9.12"]
[White "Rohith Krishna S"]
[Black "Koustav Chakraborty"]
[Result "1-0"]
[ECO "E05"]
[WhiteElo "2337"]
[BlackElo "1945"]
[Annotator "TA"]
[PlyCount "137"]
[EventDate "2022.05.15"]
[EventType "swiss"]
[EventCountry "IND"]
[SourceTitle "playchess.com"]
[Source "ChessBase"]
[SourceQuality "1"]
[TimeControl "5400+30"]

{[%evp 20,137,1,-16,0,0,0,0,0,0,9,14,12,0,17,16,22,0,0,-23,-37,-33,-30,-64,0,-58,-56,-101,18,16,17,16,11,14,20,9,19,23,43,47,420,405,408,413,388,399,391,369,344,283,1166,441,475,468,605,582,558,549,546,532,515,504,572,370,403,397,380,358,353,343,430,430,419,401,734,697,12833,1412,29946,29948,29946,29942,29949,29939,12850,1359,29939,902,29955,29955,29953,29955,29958,29957,29965,29967,29967,29968,29968,29969,29969,29970,29972,29972,29976,29971,29973,29972,29972,29973,29973,29974,29974,29975,29975,29974,29981,29973,29993,229]} 1. Nf3 {[%emt 0:00:34]} d5 {[%emt 0:00:11]} 2. g3 {[%emt 0:00:15]} Nf6 {[%emt 0:00:07]} 3. Bg2 {[%emt 0:00:36]} e6 {[%emt 0:00:06]} 4. c4 {[%emt 0:00:11]} Be7 {[%emt 0:00:05]} 5. O-O {[%emt 0:01:13]} O-O {[%emt 0:00:07]} 6. d4 {[%emt 0:00:09]} dxc4 {[%emt 0:00:06]} 7. Qa4 {[%emt 0:09:59]} a6 {[%emt 0:00:08]} 8. Qxc4 {[%emt 0:00:08]} b5 {[%emt 0:00:05]} 9. Qc2 {[%emt 0:04:27]} Bb7 {[%emt 0:00:05]} 10. Bf4 {[%emt 0:03:16]} Nc6 {[%emt 0:00:07]} 11. Nbd2 {[%emt 0:05:04]} Nxd4 {[%emt 0:18:14] E05: Open Catalan: 5 Nf3 Be7.} (11... Nd5 {seems wilder.} 12. Nb3 Nxf4 13. gxf4 Nb4) 12. Nxd4 {[%emt 0:00:13]} Bxg2 {[%emt 0:00:08]} 13. Nxe6 {[%emt 0:00:10]} fxe6 {[%emt 0:00:24] The position is equal.} 14. Kxg2 {[%emt 0:00:06]} Nd5 {[%emt 0:01:50][%cal Bf6d5,Bd5b4,Bb4d3][%mdl 32]} 15. Be5 {[%emt 0:02:57]} c5 {[%emt 0:05:45]} 16. Nf3 {[%emt 0:00:17] [#]} c4 $146 {[%emt 0:05:29]} ({Predecessor:} 16... Qe8 17. Qe4 Qf7 18. Rad1 Rad8 19. Rd2 c4 20. a3 h6 21. Rfd1 {½-½ (21) Nogueiras Santiago,J (2552)-Ehlvest,J (2627) New Delhi/Teheran 2000}) 17. a4 {[%emt 0:02:58]} Qb6 {[%emt 0:11:36]} 18. Bd4 {[%emt 0:14:12]} Qc6 {[%emt 0:03:04]} 19. b3 {[%emt 0:01:17]} Nb4 {[%emt 0:09:54]} 20. Qb2 {[%emt 0:01:30] [#] Black must now prevent axb5.} Nd3 $1 {[%emt 0:03:17]} 21. exd3 {[%emt 0:01:33]} (21. Qa2 e5) 21... Rxf3 {[%emt 0:05:59]} (21... cxd3 $15 22. Bxg7 Qxf3+ 23. Kg1 Rf7) 22. Kg1 {[%emt 0:00:07]} (22. axb5 $11 axb5 23. Rxa8+ Qxa8 24. bxc4) 22... Rxd3 $15 {[%emt 0:05:25]} 23. bxc4 {[%emt 0:03:54]} Qxc4 {[%emt 0:08:54]} (23... bxc4 $17 {...c3 is the strong threat.} 24. Bxg7 c3) 24. Bxg7 $11 {[%emt 0:00:33]} Rb3 {[%emt 0:02:44]} 25. Qe5 $40 {[%emt 0:04:38][%mdl 128] Black needs to defend precisely.} Qd5 {[%emt 0:19:10]} 26. Rfd1 {[%emt 0:14:23]} Qxe5 {[%emt 0:00:00]} 27. Bxe5 {[%emt 0:00:04]} Rd8 {[%emt 0:00:00] Against Rd7} 28. Rdc1 {[%emt 0:02:42][%cal Bd1c1,Bc1c8,Bc8g8][%mdl 32]} Rd5 {[%emt 0:00:00]} 29. axb5 {[%emt 0:00:15]} Rxe5 $4 {[%emt 0:00:00][%mdl 8192] [#] Black cannot hold the game after this.} ({Black should try} 29... Rbxb5 $14 30. Rc8+ Kf7) 30. Rc8+ $1 $18 {[%emt 0:00:13]} ({Weaker is} 30. bxa6 Rb8 $14) 30... Kf7 {[%emt 0:00:00]} 31. bxa6 {[%emt 0:00:06]} Bc5 {[%emt 0:00:00]} (31... Rc5 $2 32. Rh8 Bf6 33. a7 (33. Rxh7+ Kg6 $11) 33... Bxh8 34. a8=Q Bxa1 35. Qa7+ (35. Qxa1 Rf5 $16) 35... Kg6 36. Qxc5) 32. a7 {[%emt 0:00:05]} Bxa7 {[%emt 0:00:00]} 33. Rxa7+ {[%emt 0:00:05][%mdl 4096] Endgame KRR-KRR} Kg6 {[%emt 0:00:00]} 34. Rg8+ {[%emt 0:00:07]} Kh6 $2 {[%emt 0:00:00]} (34... Kf6 35. Rxh7 Rf5) 35. Rh8 {[%emt 0:00:30]} (35. h4 $142 {Threatens to win with g4.} Rb6 36. g4) 35... Re1+ {[%emt 0:00:00]} 36. Kg2 {[%emt 0:00:35]} e5 {[%emt 0:00:00]} 37. Rhxh7+ {[%emt 0:01:08]} Kg6 {[%emt 0:00:00]} 38. Rhb7 {[%emt 0:00:49]} Rc3 {[%emt 0:00:00]} 39. Ra6+ {[%emt 0:02:50]} Kf5 {[%emt 0:00:00]} 40. Rb4 {[%emt 0:01:11]} Rcc1 {[%emt 0:00:00]} 41. Ra3 {[%emt 0:02:32]} Rg1+ {[%emt 0:00:12]} 42. Kh3 {[%emt 0:00:45]} Rc7 {[%emt 0:01:56]} 43. Rf3+ {[%emt 0:00:08]} Ke6 {[%emt 0:00:12]} 44. Re3 {[%emt 0:01:10]} Kf5 {[%emt 0:01:06]} 45. Rh4 {[%emt 0:00:26] Prevents Rh7.} Rc2 {[%emt 0:01:03]} 46. Rh5+ {[%emt 0:01:23]} Kf6 {[%emt 0:00:34]} (46... Kg6 $142) 47. Rhxe5 {[%emt 0:00:16]} Rxf2 {[%emt 0:00:06]} 48. Re6+ {[%emt 0:00:29]} (48. Kg4 $142 Rd1 49. h4) 48... Kf7 {[%emt 0:00:06]} 49. Re7+ {[%emt 0:00:11]} Kf8 {[%emt 0:02:24]} 50. Re2 {[%emt 0:00:06]} Rf6 {[%emt 0:00:06]} 51. Re8+ {[%emt 0:00:14]} Kg7 {[%emt 0:00:12]} 52. R2e7+ {[%emt 0:00:04]} Kg6 {[%emt 0:00:36]} 53. Re6 {[%emt 0:00:06]} (53. Kg4 $142 Rf7 54. Re6+ Rf6 55. Re3 Rc1 56. h4 Rd1 57. h5+ Kh6 58. Rh8+ Kg7 59. Ree8) 53... Rgf1 {[%emt 0:00:53]} 54. Rxf6+ {[%emt 0:00:13] White mates.} Rxf6 {[%emt 0:00:04] KR-KR} 55. Kg4 {[%emt 0:00:07]} Ra6 {[%emt 0:00:04]} 56. Re4 {[%emt 0:00:13]} Rf6 {[%emt 0:01:08]} 57. h4 {[%emt 0:00:15][%cal Bh2h4,Bh4h5][%mdl 32]} Ra6 {[%emt 0:00:33]} 58. h5+ {[%emt 0:00:11]} Kh6 {[%emt 0:00:19]} 59. Kh4 {[%emt 0:00:04]} Ra1 {[%emt 0:05:26]} 60. Re6+ {[%emt 0:00:05]} Kh7 {[%emt 0:00:00]} 61. g4 {[%emt 0:01:03]} Ra5 {[%emt 0:00:00]} 62. Rd6 {[%emt 0:00:21]} Rb5 {[%emt 0:00:00]} 63. h6 {[%emt 0:01:44]} Rb1 {[%emt 0:00:00]} 64. Kh5 {[%emt 0:00:12]} Rh1+ {[%emt 0:00:00]} 65. Kg5 {[%emt 0:00:04]} Ra1 {[%emt 0:00:00]} 66. Rd7+ {[%emt 0:00:09]} Kh8 {[%emt 0:00:00]} 67. Kh5 {[%emt 0:00:07]} Ra6 {[%emt 0:00:00]} 68. g5 {[%emt 0:00:09]} Rb6 {[%emt 0:00:00]} 69. Rd8+ {[%emt 0:00:59] Weighted Error Value: White=0.24 (precise) /Black=0.53} 1-0

[Event "13th KIIT Festival-A 2022"]
[Site "Bhubaneswar"]
[Date "2022.05.28"]
[Round "9.13"]
[White "Pattnayak Nilsu"]
[Black "Saravana, Krishnan P."]
[Result "1-0"]
[ECO "B13"]
[WhiteElo "1992"]
[BlackElo "2269"]
[Annotator "TA"]
[PlyCount "107"]
[EventDate "2022.05.15"]
[EventType "swiss"]
[EventCountry "IND"]
[SourceTitle "playchess.com"]
[Source "ChessBase"]
[SourceQuality "1"]
[TimeControl "5400+30"]

{[%evp 10,107,33,8,25,24,42,24,26,28,18,21,63,71,68,66,68,68,147,139,125,122,124,114,127,116,114,114,134,87,94,29,36,23,23,23,48,36,144,150,185,121,93,70,262,156,161,164,164,163,166,164,170,178,160,167,158,163,172,172,162,79,129,129,154,72,116,96,95,68,191,0,87,0,70,96,366,150,552,542,674,644,953,956,950,949,935,922,963,928,896,900,903,877,877,860,1680,1094,1908,1337]} 1. e4 {[%emt 0:00:37]} c6 {[%emt 0:00:07]} 2. d4 {[%emt 0:00:07]} d5 {[%emt 0:00:03]} 3. exd5 {[%emt 0:00:05]} cxd5 {[%emt 0:00:05]} 4. Bd3 {[%emt 0:00:05]} Nc6 {[%emt 0:00:22]} 5. c3 {[%emt 0:00:04]} g6 {[%emt 0:00:24]} 6. h3 {[%emt 0:00:32]} Bg7 {[%emt 0:00:14] B13: Caro-Kann: Exchange Variation and Panov-Botvinnik Attack.} 7. Nf3 {[%emt 0:00:09]} Nh6 {[%emt 0:00:37]} 8. Bf4 {[%emt 0:01:09]} f6 {[%emt 0:03:46] White has an edge.} 9. O-O {[%emt 0:16:39]} O-O {[%emt 0:00:52]} 10. c4 {[%emt 0:01:08] [#]} Kh8 $146 {[%emt 0:04:38]} ({Predecessor:} 10... Nf7 11. Nc3 e5 12. dxe5 fxe5 13. cxd5 exf4 14. dxc6 bxc6 15. Bc4 h6 16. Re1 Qc7 17. Nh4 Kh7 18. Bd3 Nh8 {1-0 (80) Borosova,Z (2307)-Petran,P (2361) Slovakia 2010}) 11. cxd5 {[%emt 0:05:38]} Qxd5 {[%emt 0:06:44]} 12. Nc3 {[%emt 0:01:20]} Qd8 {[%emt 0:03:13]} 13. d5 {[%emt 0:02:34]} Nb4 {[%emt 0:03:08]} (13... Ne5 $14) 14. Bc4 {[%emt 0:01:43]} g5 {[%emt 0:02:09]} 15. Bg3 {[%emt 0:05:20]} Na6 {[%emt 0:06:18]} 16. Qe2 {[%emt 0:12:24]} g4 {[%emt 0:07:54]} 17. hxg4 {[%emt 0:01:39] 0x0.002d01638ea0dp-1022s more active pieces. The black rooks are badly placed.} Bxg4 {[%emt 0:01:58]} 18. Rfe1 {[%emt 0:04:37]} (18. Bxa6 bxa6 19. Bf4 (19. Qxa6 Nf5 $14) 19... Qb6 $14) 18... Qb6 {[%emt 0:02:07]} 19. Bh2 {[%emt 0:09:09]} (19. Nb5 $142) 19... Rac8 {[%emt 0:02:34]} 20. Bb3 {[%emt 0:05:35]} (20. Rad1 $16) 20... Nc5 $1 $11 {[%emt 0:04:01]} 21. Na4 $36 {[%emt 0:01:57][%mdl 2048] White is more active.} Nxa4 {[%emt 0:08:07]} 22. Bxa4 {[%emt 0:00:07]} Nf7 $1 {[%emt 0:18:29]} 23. Qe3 {[%emt 0:14:17] Prevents Ng5.} Qa6 {[%emt 0:07:20]} (23... Qxb2 $14 24. Reb1 (24. Qxa7 $2 Ra8 $19) (24. Qxe7 Bxf3 25. gxf3 Ne5 $17) 24... Qc3) 24. Bb3 $16 {[%emt 0:00:36]} Bh6 {[%emt 0:03:12] Against Qf4} 25. Qxe7 {[%emt 0:03:19]} (25. Qe4 $18 Rg8 26. d6 (26. Bc2 $2 Rxc2 27. Qxc2 Bxf3 $19) 26... Nxd6 27. Bxd6 (27. Qxe7 Nc4 $14) 27... Qxd6 28. Bxg8 (28. Qxb7 Rb8 $11) 28... Rxg8 29. Qxb7) 25... Bxf3 {[%emt 0:00:12]} 26. Re6 {[%emt 0:00:04]} Qa5 {[%emt 0:01:11]} (26... Qd3 $14 27. Qxf6+ (27. gxf3 Qg6+ 28. Bg3 Ng5 $11) 27... Bg7 28. Qxf3 Qxf3 29. gxf3 Ng5) 27. Qxf6+ {[%emt 0:05:15]} ({Better is} 27. gxf3 $18 {Strongly threatening Bg3.} Qd2 28. Rd1 (28. Qxf6+ Bg7 $18) 28... Qg5+ 29. Bg3) 27... Bg7 {[%emt 0:00:14]} 28. Qxf3 {[%emt 0:00:11]} Ng5 {[%emt 0:00:26]} 29. Qe2 {[%emt 0:00:23]} Nxe6 {[%emt 0:01:10]} 30. dxe6 {[%emt 0:00:02] And now e7 would win.} Qc5 {[%emt 0:01:07][%cal Of8f2] Hoping for ...Rxf2!} 31. Rd1 {[%emt 0:01:25]} ({Weaker is} 31. e7 Rfe8 $15) 31... Rcd8 {[%emt 0:01:12]} 32. Re1 {[%emt 0:04:20] aiming for e7.} Rde8 {[%emt 0:05:40]} 33. Bg3 {[%emt 0:01:18]} ({Don't do} 33. e7 $6 Rf5 $16) 33... Bf6 {[%emt 0:00:57]} 34. Qe4 {[%emt 0:01:41]} Rg8 {[%emt 0:02:40] Threatens to win with ...Rxg3.} 35. Kf1 {[%emt 0:01:35]} (35. Bf4 $18 {has better winning chances.}) 35... Qb5+ {[%emt 0:01:25]} (35... Qh5 $142) 36. Qe2 {[%emt 0:00:10]} Qc5 {[%emt 0:01:01][%cal Og8g3] ...Rxg3! is the strong threat.} 37. Rd1 {[%emt 0:00:51]} ({White should play} 37. Qf3 Qe7 38. Rd1) 37... Qf5 {[%emt 0:00:31] White must now prevent ...Rxg3.} 38. Qd3 {[%emt 0:00:32]} Qh5 {[%emt 0:00:15]} 39. Qf3 {[%emt 0:00:34]} Qb5+ {[%emt 0:01:36]} (39... Qxf3 $14 40. gxf3 Rg7) 40. Qd3 {[%emt 0:00:09]} (40. Kg1 $18 Qg5 41. Qxb7) 40... Qh5 {[%emt 0:00:16]} 41. Qf3 {[%emt 0:00:04]} (41. Kg1 $16) 41... Qxf3 {[%emt 0:01:05]} (41... Qb5+ $1 $11 42. Kg1 Qg5 43. Qxb7 Rc8) 42. gxf3 $14 {[%emt 0:00:04]} Bxb2 $2 {[%emt 0:00:04][%mdl 8192] [#]} (42... Kg7 $16 {is a better defense.}) 43. Rd7 {[%emt 0:00:48]} (43. Bh4 $1 $18 {and the rest is easy.}) 43... Rg7 $2 {[%emt 0:00:06] [#] Prevents e7.} (43... Rg6 $16 {is more resistant.} 44. Rxb7 Rg7) 44. Bh4 $1 $18 {[%emt 0:01:11] White is clearly winning.} b6 {[%emt 0:00:27]} 45. e7 {[%emt 0:00:21]} Rgg8 {[%emt 0:01:13]} 46. Rd8 {[%emt 0:00:29]} Rxd8 {[%emt 0:00:43]} 47. exd8=Q {[%emt 0:00:05]} Rxd8 {[%emt 0:00:05]} 48. Bxd8 {[%emt 0:00:03]} Bd4 {[%emt 0:00:11]} 49. Ke2 {[%emt 0:00:10]} Kg7 {[%emt 0:00:06]} 50. f4 {[%emt 0:00:34][%cal Bf3f4,Bf4f5][%mdl 32]} Bc5 {[%emt 0:00:27]} 51. f5 {[%emt 0:00:17]} Bd4 {[%emt 0:00:05]} 52. f4 {[%emt 0:00:10]} b5 {[%emt 0:01:03]} 53. Kd3 {[%emt 0:00:18]} Bb2 {[%emt 0:00:28]} 54. Bd1 {[%emt 0:00:13] Weighted Error Value: White=0.28 (precise) /Black=0.56} 1-0